Cogmind - Beta 15 @@@ ROGUE MODE // 2025.06.21 @ 19:49:49 Player: puppuppit Result: Destroyed by as-19990 with Assembled Rifle Performance ------------- Evolutions (0) 0 Regions Visited (2) 400 Robots Destroyed (42) 210 Value Destroyed (849) 849 Prototype IDs (2) 40 Alien Tech Used (0) 0 Bonus (-44) -44 TOTAL SCORE: 1455 Bonus ------- Friendly Fire -44 Cogmind --------- Core Integrity 0/250 Matter 260/300 Energy 100/100 System Corruption 1% Temperature Cool (0) Movement Hovering (147) Ox1 Location -10/Mines Parts ------- > --- POWER (1) -------- (None) > --- PROPULSION (2) --- Combat Airjet Combat Airjet > --- UTILITY (2) ------ Large Storage Unit Splice Drone Bay (1/6) > --- WEAPON (2) ------- Mini Grenade Launcher > --- INVENTORY (15) --- Light Treads Light Treads Light Treads Light Treads Scrap Suit Large Matter Pod (150) Large Matter Pod (150) Targeting Computer Improved Light Armor Plating Light Cannon Improved Light Cannon Improved Light Cannon Improved Light Cannon Peak State ------------ > --- POWER ------------ Heavy Ion Engine > --- PROPULSION ------- Combat Airjet Combat Airjet > --- UTILITY ---------- Large Storage Unit Improved Light Armor Plating > --- WEAPON ----------- Improved Light Cannon Improved Light Cannon > --- INVENTORY -------- Light Treads Light Treads Light Treads Light Treads Large Matter Pod Large Matter Pod Targeting Computer Propulsion Shielding Weapon Shielding Autogun Autogun Autogun Light Cannon Improved Light Cannon Mini Grenade Launcher [Rating: 23] Favorites ----------- Power Heavy Ion Engine Engine Heavy Ion Engine Propulsion Light Treads Treads Light Treads Hover Unit Combat Airjet Utility Large Storage Unit Device Improved Terrain Scanner Storage Large Storage Unit Processor Targeting Computer Hackware Hacking Suite Protection Weapon Shielding Weapon Improved Light Cannon Ballistic Gun Light Assault Rifle Ballistic Cannon Improved Light Cannon Launcher Mini Grenade Launcher Build | -11 -10 -10 ------- Run | Yrd Mat Min Slots Evolved . | . . . Power . | . . . Propulsion . | . . . Utility . | . . . Weapon . | . . . Parts Attached 30 | 7 13 10 Power 2 | 1 1 . Engine 2 | 1 1 . Core . | . . . Reactor . | . . . Propulsion 8 | 2 2 4 Treads 6 | 2 2 2 Leg . | . . . Wheel . | . . . Hover 2 | . . 2 Flight . | . . . Utility 13 | 2 8 3 Device 2 | 1 . 1 Storage 3 | 1 2 . Processor 1 | . 1 . Hackware 2 | . 2 . Protection 5 | . 3 2 Artifact . | . . . Weapon 7 | 2 2 3 Energy Gun . | . . . Energy Cannon . | . . . Ballistic Gun 2 | 2 . . Ballistic Cannon 4 | . 2 2 Launcher 1 | . . 1 Special Weapon . | . . . Impact Weapon . | . . . Slashing Weapon . | . . . Piercing Weapon . | . . . Special Melee Weapon . | . . . Unidentified Prototypes 2 | . 1 1 Parts Lost 2 | . . 2 Power . | . . . Propulsion . | . . . Utility 1 | . . 1 Weapon 1 | . . 1 Highest Loss Streak 2 | . . 2 To Critical Strikes . | . . . Average Backups 10 | . 10 14 Power . | . . . Propulsion 1 | . . 3 Utility 3 | . 3 4 Weapon 5 | . 5 5 Tool/Special . | . . . Unused Backups 17 | . 7 10 Power . | . . . Propulsion 2 | . 1 1 Utility 9 | . 5 4 Weapon 6 | . 1 5 Tool/Special . | . . . Average Slot Usage (%) 96 | . 99 87 Engine 12 | . 14 8 Treads 24 | . 27 16 Hover 3 | . . 11 Device 2 | . 3 2 Storage 14 | . 14 14 Hackware 1 | . 2 . Protection 8 | . 7 11 Ballistic Gun 3 | . 4 . Ballistic Cannon 21 | . 22 16 Launcher 1 | . . 5 Peak Build Rating 23 | 9 15 23 Average Rating 12 | 6 12 15 On Entrance 7 | . 9 13 Naked Turns . | . . . Heaviest Build 39 | 13 39 39 Greatest Support 40 | 40 40 40 Greatest Overweight (x) 4 | . 4 1 Average Overweight (x) . | . . . Largest Inventory Capacity 15 | 8 15 15 Average Capacity 12 | 7 11 15 Most Carried 15 | 3 15 15 Average Carried 10 | . 10 14 Final Capacity 15 | 8 15 15 Final Carried 15 | 3 15 14 Class Distribution -------------------- 100% | Mutant Dominant Class ---------------- Mutant | -10/Materials Mutant | -10/Mines Resources | -11 -10 -10 ----------- Run | Yrd Mat Min Matter Collected 1688 | 368 977 343 Remotely . | . . . Salvage Created 1171 | 198 801 172 Parts 77 | 14 48 15 Haulers Intercepted 2 | . 2 . Recyclers Shooed 1 | . 1 . Parts Field Recycled . | . . . Retrieved Matter . | . . . Parts Self-Destructed . | . . . Prevented . | . . . Kills | -11 -10 -10 ------- Run | Yrd Mat Min Combat Hostiles Destroyed 25 | . 15 10 Guns 3 | . 3 . Cannons 19 | . 12 7 AOE 3 | . . 3 Classes Destroyed 13 | 3 7 3 Worker 5 | 2 2 1 Builder 1 | . 1 . Tunneler 4 | 4 . . Hauler 2 | . 2 . Recycler 4 | 1 3 . Operator 2 | . 2 . Drone 1 | . . 1 Watcher 3 | . 3 . Swarmer 6 | . 3 3 Grunt 12 | . 11 1 Demolisher 2 | . . 2 Subdweller 1 | . 1 . Assembled 4 | . . 4 Best Kill Streak 4 | 4 4 3 Combat Bots Only 4 | . 4 3 Max Kills in Single Turn 2 | 1 1 2 Gunslinging . | . . . Exploded 1 | . . 1 Melee . | . . . Uniques/NPCs Destroyed . | . . . Combat | -11 -10 -10 -------- Run | Yrd Mat Min Hostile Shots Fired 86 | . 53 33 Missed 25 | . 19 6 Hits 61 | . 34 27 Projectile 61 | . 34 27 AOE 14 | . . 14 Critical Strikes 3 | . . 3 Damage Taken 1242 | . 453 789 Core 251 | . 41 210 Absorbed by Shields . | . . . Redirected to Shielding 5 | . 5 . Regen/Repaired (Parts) 116 | . 116 . Core Remaining (%) 100 | 100 . . Volleys Fired 120 | 22 76 22 Largest 2 | 2 2 2 Hottest 66 | 40 66 66 Shots Fired 235 | 44 152 39 Gun 78 | 44 34 . Cannon 152 | . 118 34 Launcher 5 | . . 5 Special . | . . . Kinetic 230 | 44 152 34 Thermal . | . . . Explosive 5 | . . 5 Electromagnetic . | . . . Robot Hit Streak 19 | 19 8 7 Robot Miss Streak 7 | 2 7 3 Penetration Max . | . . . Secondary Targets . | . . . Shots Hit Robots 136 | 34 83 19 Core Hits 67 | 13 37 17 Critical Kills . | . . . Critical Parts Destroyed 1 | . 1 . Critical Strikes 5 | . 5 . Destroy 1 | . 1 . Blast 4 | . 4 . Melee Attacks . | . . . Impact . | . . . Slashing . | . . . Piercing . | . . . Sneak Attacks . | . . . Combat Hostiles . | . . . Follow-up Attacks . | . . . Damage Inflicted 2516 | 277 1447 792 Guns 462 | 277 185 . Cannons 1667 | . 1262 405 Explosions 381 | . . 381 Melee . | . . . Ramming 6 | . . 6 Kinetic 2129 | 277 1447 405 Thermal . | . . . Explosive 381 | . . 381 Electromagnetic . | . . . Impact . | . . . Slashing . | . . . Piercing . | . . . Highest Corruption 1 | . 1 1 Average Corruption 1 | . 1 1 Corruption Purged . | . . . Corruption Blocked . | . . . Effects 17 | . 11 6 Message Errors 4 | . 2 2 Matter Fused 7 | . 5 2 Heat Flow Errors 2 | . 1 1 Parts Rejected 1 | . 1 . Parts Fused 1 | . . 1 Data Loss (minor) 1 | . 1 . Data Loss (major) 1 | . 1 . Overload Shots . | . . . Overflow Damage 15 | . . 15 Projectiles . | . . . Explosions 15 | . . 15 Melee . | . . . Knockbacks 16 | . 13 3 Impact . | . . . Kinetic 15 | . 12 3 Secondary 1 | . 1 . Self-Inflicted Damage 15 | . . 15 Shots 1 | . . 1 Rammed 1 | . . 1 Targets Rammed 1 | . . 1 Kicked . | . . . Crushed . | . . . Highest Temperature 241 | . 241 117 Average Temperature 28 | . 23 41 Received Heat Transfer 300 | . 204 96 Siege Activations . | . . . Martial Activations . | . . . Shielding Activations . | . . . Robots Disrupted . | . . . Combat Hostiles . | . . . Robots Corrupted . | . . . Combat Hostiles . | . . . Parts Fried . | . . . Impact Corruptions . | . . . Robots Melted . | . . . Combat Hostiles . | . . . Parts Melted . | . . . Heat Transferred . | . . . Parts Sabotaged . | . . . Parts Stolen . | . . . Parts Stripped . | . . . Power Chain Reactions . | . . . Alert | -11 -10 -10 ------- Run | Yrd Mat Min Maximum Alert Level 1 | . 1 . Low Security (%) 97 | 100 96 100 Level 1 2 | . 3 . Level 2 . | . . . Level 3 . | . . . Level 4 . | . . . Level 5 . | . . . High Security . | . . . Max Security . | . . . Peak Influence 210 | 15 210 86 Initial 44 | . . 44 Average 80 | 3 107 24 Influence Increases 873 | 35 617 221 Destroy 0b10 Robot/C 400 | . 280 120 Destroy 0b10 Robot/NC 105 | 35 65 5 Destroy Leader 110 | . 90 20 Successful Hack 19 | . 19 . Select Force Hacks 60 | . 60 . Disable Machine 75 | . 45 30 Destroy Structure 59 | . 13 46 Lose Combat Pursuer 45 | . 45 . Influence Decreases 839 | 35 502 302 Entered New Map 71 | . . 71 Time Decay 750 | 35 502 213 Lost Part 11 | . . 11 Lost Ally 7 | . . 7 Squads Dispatched 4 | . 4 . Investigation 2 | . 2 . Extermination . | . . . Reinforcement 2 | . 2 . Assault . | . . . Garrison . | . . . Intercept . | . . . Searches Triggered . | . . . Construction Impeded . | . . . Haulers Reinforced . | . . . Active Scanning Responses . | . . . Cargo Convoy Interrupts . | . . . Stealth | -11 -10 -10 --------- Run | Yrd Mat Min Distress Signals 4 | . 4 . Communications Jammed . | . . . Distress Signals . | . . . Times Spotted 48 | . 30 18 Peak Tracking Total 5 | . 5 5 Tactical Retreats 5 | . 3 2 Traps | -11 -10 -10 ------- Run | Yrd Mat Min Traps Triggered 2 | . 2 . Indirectly . | . . . Trap Hack Attempts . | . . . Triggered . | . . . Disarmed . | . . . Reprogrammed 6 | . 6 . Reused . | . . . Traps Extracted . | . . . Installed . | . . . Triggered . | . . . Machines | -11 -10 -10 ---------- Run | Yrd Mat Min Machines Disabled 7 | . 3 4 Max in Single Turn 3 | . 1 3 Machines Repaired . | . . . Machines Dismantled . | . . . Machines Sabotaged . | . . . Overloaded Fab Kills . | . . . Hacking | -11 -10 -10 --------- Run | Yrd Mat Min Machines Accessed 10 | . 9 1 Terminals 6 | . 6 . Fabricators . | . . . Repair Stations 1 | . 1 . Recycling Units 2 | . 2 . Scanalyzers . | . . . Garrison Access . | . . . Total Hacks 35 | . 34 1 Successful 16 | . 15 1 Failed 19 | . 19 . Catastrophic . | . . . Database Lockouts . | . . . Manual 22 | . 22 . Terminals 26 | . 26 . Fabricators . | . . . Repair Stations 4 | . 4 . Recycling Units 4 | . 4 . Scanalyzers . | . . . Garrison Access . | . . . Terminal Hacks 6 | . 5 1 Robot Analysis 2 | . 2 . Open Door 1 | . . 1 Terminal Index 1 | . 1 . Reprogram Traps 2 | . 2 . Fabricator Hacks . | . . . Repair Station Hacks 4 | . 4 . Scan Component 2 | . 2 . Repair 2 | . 2 . Recycling Unit Hacks . | . . . Scanalyzer . | . . . Garrison Access Hacks . | . . . Unauthorized Hacks 6 | . 6 . Terminals 4 | . 4 . Botnet 4 | . 4 . Fabricators . | . . . Repair Stations . | . . . Recycling Units 2 | . 2 . Tunnel 2 | . 2 . Scanalyzers . | . . . Garrison Access . | . . . Data Cores Recovered . | . . . Used . | . . . Hacking Detections 7 | . 7 . Full Trace Events 3 | . 3 . Feedback Events . | . . . Feedback Blocked . | . . . Robot Schematics Acquired . | . . . Robots Built . | . . . Authchips . | . . . Time . | . . . Total Robot Build Rating . | . . . Part Schematics Acquired . | . . . Parts Built . | . . . Authchips . | . . . Time . | . . . Total Part Build Rating . | . . . Parts Repaired 2 | . 2 . Time 64 | . 64 . Parts Recycled . | . . . Recycled Matter . | . . . Retrieved Matter . | . . . Retrieved Components . | . . . Parts Scanalyzed . | . . . Part Schematics Acquired . | . . . Parts Damaged . | . . . Bothacking | -11 -10 -10 ------------ Run | Yrd Mat Min Used RIF Installer . | . . . Robots Hacked . | . . . Non-combat . | . . . Combat . | . . . Robot Hacks Applied . | . . . Relay Couplers Released . | . . . Fabnet Peak Effective % . | . . . Robots Rewired . | . . . Allies Hacked . | . . . Hacks Repelled . | . . . Allies | -11 -10 -10 -------- Run | Yrd Mat Min Total Allies . | . . . Largest Group . | . . . Highest-Rated Group . | . . . Highest-Rated Ally . | . . . Total Orders 6 | . . 6 EXPLORE 6 | . . 6 Ally Attacks 40 | . . 40 Total Damage 168 | . . 168 Kills 3 | . . 3 Allies Corrupted 1 | . . 1 Allies Melted . | . . . Intel | -11 -10 -10 ------- Run | Yrd Mat Min Active Infowar (turns) 489 | 78 411 . Terrain 489 | 78 411 . Robot Analysis Total 2 | . 2 . Derelict Logs Recovered 1 | . . 1 Drone Launches 41 | . . 41 Drone Recoveries 36 | . . 36 Exploration | -11 -10 -10 ------------- Run | Yrd Mat Min Turns Passed 2716 | 165 1893 658 Spaces Moved 1396 | 61 945 390 Core 3 | 2 1 . Treads 1195 | 59 944 192 Legs . | . . . Wheels . | . . . Hover 198 | . . 198 Flight . | . . . Fastest Speed 50 | 50 160 77 Average Speed 148 | 156 160 118 Slowest Speed 250 | 160 250 160 Overloaded Moves . | . . . Propulsion Burnouts . | . . . Robots Hopped . | . . . Potential Cave-ins . | . . . Cave-ins Triggered . | . . . Exploration Rate (%) 50 | 4 95 53 Regions Visited 2 Branch Regions 1 Pre-discovered Areas 2 | . 2 . Known Exits Taken . | . . . Unknown Exits Taken 2 | 1 1 . Scrap Searched 2 | . . 2 Spaces Dug 9 | . . 9 Terrain Destroyed 64 | . 9 55 Melee . | . . . Projectile 11 | . 9 2 AOE 53 | . . 53 Terrain Rammed . | . . . Walls Destroyed . | . . . Machines Disabled . | . . . Actions | -11 -10 -10 --------- Run | Yrd Mat Min Total 1828 | 92 1190 546 Wait 218 | . 109 109 Move 1394 | 60 944 390 Hop . | . . . Pick Up 30 | 3 22 5 Fast Attach 16 | 7 9 . Attach 4 | . 1 3 Detach 6 | . 4 2 Swap 15 | . 7 8 Drop 24 | . 18 6 Fire 120 | 22 76 22 Melee . | . . . Ram . | . . . Kick . | . . . Crush 1 | . . 1 Escape Stasis . | . . . Rewire . | . . . Trap . | . . . Miscellaneous . | . . . Route ------- -11/Scrapyard -10/Materials (discovered 3 exits: [*Mat x2] / *Min) -10/Mines (discovered 2 exits: [*Mat] / [*Sub]) History --------- Turn | Location | Event 34 | -11/Scrapyard | Discovered new exit (range 15) 166 | -11/Scrapyard | Entered Materials 215 | -10/Materials | Discovered new exit (range 15) 300 | -10/Materials | Build established: Mutant 666 | -10/Materials | Derelicts attacked the area 904 | -10/Materials | Discovered new exit (range 14) 1650 | -10/Materials | Repaired Imp. Light Cannon 1683 | -10/Materials | Repaired Imp. Light Cannon 1908 | -10/Materials | Discovered new exit (range 5) 2059 | -10/Materials | Entered Mines 2062 | -10/Mines | Met a Derelict bent on vengeance 2152 | -10/Mines | Assembled infested the area 2199 | -10/Mines | Core integrity fell below 50% 2326 | -10/Mines | Discovered new exit (range 7) 2384 | -10/Mines | Core integrity fell below 20% 2512 | -10/Mines | Discovered new exit (range 12) 2522 | -10/Mines | Learned Materials emergency access door positions 2565 | -10/Mines | Found a Scrap Suit stashed away for nefarious purposes 2568 | -10/Mines | Found Scrap Suit 2595 | -10/Mines | Found the Drone Emporium 2599 | -10/Mines | Found Prototype Device 2599 | -10/Mines | Identified Splice Drone Bay 2717 | -10/Mines | Destroyed by as-19990 with Assembled Rifle Last Messages --------------- 02712_ Splice Drone system terminally corrupted. 02712_ as-52263 destroyed. 02712_ SHOP.Sys disabled. 02712_ Machine disabled. 02712_ Destroyed Splice Injector. 02712_ Splice Drone destroyed. 02712_ Machine disabled. 02713_ Splice Drone released from Splice Drone Bay. 02713_ Splice Drone sneak attacks. 02713_ Splice Drone injecting as-19787... 02714_ Splice Drone released from Splice Drone Bay. 02714_ Splice Drone retrieved by Splice Drone Bay (repair cost: 2). 02714_ Splice Drone sneak attacks. 02714_ Splice Drone injecting as-19787... 02715_ Splice Drone retrieved by Splice Drone Bay (repair cost: 2). 02717_ Splice Drone released from Splice Drone Bay. 02717_ Splice Drone sneak attacks. 02717_ Splice Drone injecting as-19787... Map ----- +----------------------------------------------------+ | ???????????# ##?? | | ???????????# #?? | | ???????????# ### #? | | ???????????## ##?## ### #?# | | ????????????## ###### #???? ##?# | | ?????????????# %! #????# #??# | | ?????????????######## ###### #??# | | ????????????????????# #?## | | ????????????????????######## #?# | | ??????????????????????####?# #?# | | ?????????????????????## ### #?# | | ????????????????????## ## ### | | ???????????????????## | | ??????????????????## ### ### | | ??????????????????# ##?# #?# | | ??????????????????# ##??# #?## | | ??????????????????## ##### ###? | | ???????????????????# [[ #? | | ???????????????????# ####### #? | | ???????????????????## ##?????# #? | | ????????###??######?###??????# #? | | ???????## ## ##?????????# ## | | ??????## # ##???????##=% | | ??????# #########=%! | | ??????# n % a ! | | ??????#"@a a %% | | ??????#" g a# ######## | | ??????## # ### #?????## | | ???????##### ###?# #????## | | ???????????## ##???# #????# | | ????????????####????# #????# | | ????????????????????# #????# # | | ????????????????????# #????## # | | ????????????????????# #####?## # | | ????????????????????# %% #??# # | | ????????????????????#%### #??# | | ????????????????????#%#?# #??#### | | ????????????????????#=#?# #?????? | | ????????????????????#%#?# #?????? | | ????????????????????# #?# ####### | | ????????????????????# #?# | | ???????????????????? #?# ####### | | ????????????????????###?# #?????? | | ????????????????????????# #?????? | | ????????????????????????# #?????? | | ????????????????????????# #?????? | | ????????????????????????# #?????? | | ????????????????????????# #?????? | | ????????????????????????# #?????? | | ????????????????????????# #?????? | +----------------------------------------------------+ Best States ------------- Heat Dissipation 25 Energy Generation 14 Energy Capacity 280 Matter Stores 300 Matter Capacity 300 Sight Range 16 Terrain Scan Range 16 Terrain Scan Density 10 Armor Coverage 150 Propulsion Shielding 33 Weapon Shielding 33 Evasion (%) 49 Targeting Accuracy 5 Recoil Reduction 2 Offensive Hacking 10 Item Schematics ----------------- None Robot Schematics ------------------ None Fabricated ------------ Nothing Repaired ---------- Imp. Light Cannon | 45% | -10/Materials Imp. Light Cannon | 68% | -10/Materials Alien Tech Used ----------------- None Achievements -------------- None Challenges ------------ None Game ------ Seed NovaSpectralMonowheel Manual? 0 Play Time 00:14:27 Cumulative 334.3 hours Start 2025.06.21 @ 19:35:42 End 2025.06.21 @ 19:49:49 Sessions 1 Manual Loads 0 Difficulty Rogue Special Mode None Game No. 200 Rogue 200 Adventurer 0 Explorer 0 Win Type - Total 4 Types 2/0/1/1/0/0/0/0/0/0 Lore% 84 Gallery% 72 Achievement% 67 Wizard Run 0 Options --------- Layout 2 ASCII 0 Keyboard 1 Movement Vi Keybinds 0 Fullscreen 1 Font 16/Tamsyn Map View 55x47 Zoom Use 0% Tactical HUD 1 Map Filters NONE Filters NONE Steam 0 RUN: 9edc18fd-fc86-4776-b41c-7db8db535593